fUSD/lending_fUSD_20250219
["ID","MTS","AMOUNT","RATE_DAILY","PERIOD"]
[353598177,1739956250170,-500.0,0.0001378,2]
[353598178,1739956250180,-500.0,0.0001378,2]
[353598179,1739956250189,-500.0,0.0001378,2]
[353598180,1739956250199,-500.0,0.0001378,2]
[353598181,1739956250209,-500.0,0.0001378,2]
[353598182,1739956250218,-884.18,0.0001378,2]
[353598183,1739956250229,-500.0,0.0001378,2]
[353598184,1739956250239,-500.0,0.0001378,2]
[353598185,1739956250248,-500.0,0.0001378,2]
[353598186,1739956250257,-500.0,0.0001378,2]
[353598187,1739956250267,-500.0,0.0001378,2]
[353598188,1739956250276,-1946.584212,0.0001378,2]
[353598189,1739956250285,-500.0,0.0001378,2]
[353598190,1739956250295,-500.0,0.0001378,2]
[353598191,1739956250304,-500.0,0.0001378,2]
[353598192,1739956250314,-834.85,0.0001378,2]
[353598193,1739956250324,-500.0,0.0001378,2]
[353598194,1739956250334,-1470.743788,0.0001378,2]
[353598195,1739956250344,-500.0,0.0001378,2]
[353598196,1739956250354,-500.0,0.0001378,2]
[353598197,1739956250363,-500.0,0.0001378,2]
[353598198,1739956250373,-711.77,0.0001378,2]
[353598199,1739956250383,-691.82,0.0001378,2]
[353598200,1739956250392,-500.0,0.0001378,2]
[353598201,1739956250402,-500.0,0.0001378,2]
[353598202,1739956250412,-500.0,0.0001378,2]
[353598203,1739956250421,-775.45,0.0001378,2]
[353598204,1739956250431,-500.0,0.0001378,2]
[353598205,1739956250441,-500.0,0.0001378,2]
[353598206,1739956250450,-500.0,0.0001378,2]
[353598207,1739956250459,-500.0,0.0001378,2]
[353598208,1739956250470,-500.0,0.0001378,2]
[353598209,1739956250480,-190.13957329,0.0001378,2]
[353598210,1739956250490,-536.53,0.0001378,2]
[353598211,1739956250499,-500.0,0.0001378,2]
[353598212,1739956250509,-636.56,0.0001378,2]
[353598213,1739956250519,-500.0,0.0001378,2]
[353598214,1739956250528,-500.0,0.0001378,2]
[353598215,1739956250538,-552.40464864,0.0001378,2]
[353598216,1739956250547,-500.0,0.0001378,2]
[353598217,1739956250557,-672.21,0.0001378,2]
[353598218,1739956250567,-500.0,0.0001378,2]
[353598219,1739956250576,-500.0,0.0001378,2]
[353598220,1739956250589,-500.0,0.0001378,2]
[353598221,1739956250599,-500.0,0.0001378,2]
[353598222,1739956250609,-891.66,0.0001378,2]
[353598223,1739956250620,-690.27,0.0001378,2]
[353598224,1739956250631,-500.0,0.0001378,2]
[353598225,1739956250640,-500.0,0.0001378,2]
[353598226,1739956250651,-500.0,0.0001378,2]
[353598227,1739956250661,-500.0,0.0001378,2]
[353598228,1739956250671,-500.0,0.0001378,2]
[353598229,1739956250680,-500.0,0.0001378,2]
[353598230,1739956250691,-393.67371199,0.0001378,2]
[353598231,1739956250700,-500.0,0.0001378,2]
[353598232,1739956250710,-500.0,0.0001378,2]
[353598233,1739956250720,-500.0,0.0001378,2]
[353598234,1739956250730,-502.7856543,0.0001378,2]
[353598235,1739956250740,-517.33081533,0.0001378,2]
[353598236,1739956250749,-500.0,0.0001378,2]
[353598237,1739956250760,-571.03,0.0001378,2]
[353598238,1739956250770,-500.0,0.0001378,2]
[353598239,1739956250781,-290.46483086,0.0001378,2]
[353598240,1739956250792,-584.77212575,0.0001378,2]
[353598241,1739956250803,-500.0,0.0001378,2]
[353598242,1739956250813,-500.0,0.0001378,2]
[353598243,1739956250823,-564.48,0.0001378,2]
[353598244,1739956250832,-731.53,0.0001378,2]
[353598245,1739956250842,-500.0,0.0001378,2]
[353598246,1739956250852,-500.0,0.0001378,2]
[353598247,1739956250862,-555.74157681,0.0001378,2]
[353598248,1739956250872,-500.0,0.0001378,2]
[353598249,1739956250881,-1613.57,0.0001378,2]
[353598250,1739956250891,-612.22,0.0001378,2]
[353598251,1739956250901,-500.0,0.0001378,2]
[353598252,1739956250911,-500.0,0.0001378,2]
[353598253,1739956250921,-500.0,0.0001378,2]
[353598254,1739956250931,-1000.0,0.0001378,2]
[353598255,1739956250941,-500.0,0.0001378,2]
[353598256,1739956250951,-528.05,0.0001378,2]
[353598257,1739956250961,-241.28613718,0.0001378,2]
[353598258,1739956250972,-500.0,0.0001378,2]
[353598259,1739956250982,-500.0,0.0001378,2]
[353598260,1739956250992,-500.0,0.0001378,2]
[353598261,1739956251002,-500.0,0.0001378,2]
[353598262,1739956251012,-500.0,0.0001378,2]
[353598263,1739956251022,-520.77,0.0001378,2]
[353598264,1739956251032,-500.0,0.0001378,2]
[353598265,1739956251043,-500.0,0.0001378,2]
[353598266,1739956251052,-500.0,0.0001378,2]
[353598267,1739956251061,-548.84231372,0.0001378,2]
[353598268,1739956251071,-593.34,0.0001378,2]
[353598269,1739956251081,-520.63348421,0.0001378,2]
[353598270,1739956251091,-500.0,0.0001378,2]
[353598271,1739956251102,-500.0,0.0001378,2]
[353598272,1739956251111,-500.0,0.0001378,2]
[353598273,1739956251121,-500.0,0.0001378,2]
[353598274,1739956251130,-899.15,0.0001378,2]
[353598275,1739956251140,-498.2731342,0.0001378,2]
[353598276,1739956251151,-500.0,0.0001378,2]
[353598277,1739956251161,-500.0,0.0001378,2]
[353598278,1739956251171,-506.02,0.0001378,2]
[353598279,1739956251182,-500.0,0.0001378,2]
[353598280,1739956251192,-500.0,0.0001378,2]
[353598281,1739956251202,-500.0,0.0001378,2]
[353598282,1739956251212,-263.09110025,0.0001378,2]
[353598283,1739956251223,-500.0,0.0001378,2]
[353598284,1739956251234,-500.0,0.0001378,2]
[353598285,1739956251244,-500.0,0.0001378,2]
[353598286,1739956251254,-500.0,0.0001378,2]
[353598287,1739956251264,-599.19,0.0001378,2]
[353598288,1739956251275,-766.05,0.0001378,2]
[353598289,1739956251285,-500.0,0.0001378,2]
[353598290,1739956251296,-500.0,0.0001378,2]
[353598291,1739956251306,-500.0,0.0001378,2]
[353598292,1739956251315,-500.0,0.0001378,2]
[353598293,1739956251326,-500.0,0.0001378,2]
[353598294,1739956251336,-500.0,0.0001378,2]
[353598295,1739956251346,-500.0,0.0001378,2]
[353598296,1739956251356,-1062.29,0.0001378,2]
[353598297,1739956251365,-500.0,0.0001378,2]
[353598298,1739956251375,-500.0,0.0001378,2]
[353598299,1739956251385,-500.0,0.0001378,2]
[353598300,1739956251395,-640.39,0.0001378,2]
[353598301,1739956251405,-500.0,0.0001378,2]
[353598302,1739956251415,-500.0,0.0001378,2]
[353598303,1739956251425,-500.0,0.0001378,2]
[353598304,1739956251435,-500.0,0.0001378,2]
[353598305,1739956251445,-500.0,0.0001378,2]
[353598306,1739956251455,-946.45,0.0001378,2]
[353598307,1739956251465,-500.0,0.0001378,2]
[353598308,1739956251476,-500.0,0.0001378,2]
[353598309,1739956251486,-500.0,0.0001378,2]
[353598310,1739956251495,-500.0,0.0001378,2]
[353598311,1739956251505,-500.0,0.0001378,2]
[353598312,1739956251515,-500.0,0.0001378,2]
[353598313,1739956251525,-1320.52,0.0001378,2]
[353598314,1739956251535,-500.0,0.0001378,2]
[353598315,1739956251545,-500.0,0.0001378,2]
[353598316,1739956251555,-500.0,0.0001378,2]
[353598317,1739956251565,-500.0,0.0001378,2]
[353598318,1739956251575,-500.0,0.0001378,2]
[353598319,1739956251585,-500.0,0.0001378,2]
[353598320,1739956251599,-500.0,0.0001378,2]
[353598321,1739956251609,-500.0,0.0001378,2]
[353598322,1739956251619,-500.0,0.0001378,2]
[353598323,1739956251629,-500.0,0.0001378,2]
[353598324,1739956251639,-385.09852718,0.0001378,2]
[353598325,1739956251649,-1066.97,0.0001378,2]
[353598326,1739956251659,-500.0,0.0001378,2]
[353598327,1739956251669,-614.46,0.0001378,2]
[353598328,1739956251679,-500.0,0.0001378,2]
[353598329,1739956251689,-640.5715789,0.0001378,2]
[353598330,1739956251698,-500.0,0.0001378,2]
[353598331,1739956251708,-500.0,0.0001378,2]
[353598332,1739956251718,-500.0,0.0001378,2]
[353598333,1739956251728,-661.79,0.0001378,2]
[353598334,1739956251738,-500.0,0.0001378,2]
[353598335,1739956251748,-500.0,0.0001378,2]
[353598336,1739956251758,-500.0,0.0001378,2]
[353598337,1739956251769,-500.0,0.0001378,2]
[353598338,1739956251778,-500.0,0.0001378,2]
[353598339,1739956251788,-768.24,0.0001378,2]
[353598340,1739956251798,-883.53,0.0001378,2]
[353598341,1739956251808,-500.0,0.0001378,2]
[353598342,1739956251818,-500.0,0.0001378,2]
[353598343,1739956251829,-757.47,0.0001378,2]
[353598344,1739956251838,-500.0,0.0001378,2]
[353598345,1739956251849,-500.0,0.0001378,2]
[353598346,1739956251859,-500.0,0.0001378,2]
[353598347,1739956251868,-500.0,0.0001378,2]
[353598348,1739956251878,-500.0,0.0001378,2]
[353598349,1739956251888,-500.0,0.0001378,2]
[353598350,1739956251898,-704.06,0.0001378,2]
[353598351,1739956251907,-684.88,0.0001378,2]
[353598352,1739956251918,-807.63,0.0001378,2]
[353598353,1739956251927,-500.0,0.0001378,2]
[353598354,1739956251937,-1106.19,0.0001378,2]
[353598355,1739956251948,-500.0,0.0001378,2]
[353598356,1739956251959,-500.0,0.0001378,2]
[353598357,1739956251970,-500.0,0.0001378,2]
[353598358,1739956251981,-754.27,0.0001378,2]
[353598359,1739956251991,-500.0,0.0001378,2]
[353598360,1739956252001,-277.78465479,0.0001378,2]
[353598361,1739956252011,-452.0108054,0.0001378,2]
[353598362,1739956252021,-500.0,0.0001378,2]
[353598363,1739956252032,-508.85,0.0001378,2]
[353598364,1739956252043,-500.0,0.0001378,2]
[353598365,1739956252053,-500.0,0.0001378,2]
[353598366,1739956252063,-588.57091692,0.0001378,2]
[353598367,1739956252074,-599.3,0.0001378,2]
[353598368,1739956252084,-500.0,0.0001378,2]
[353598369,1739956252094,-500.0,0.0001378,2]
[353598370,1739956252103,-499.0619688,0.0001378,2]
[353598371,1739956252114,-588.967828,0.0001378,2]
[353598372,1739956252124,-634.4,0.0001378,2]
[353598373,1739956252135,-613.55,0.0001378,2]
[353598374,1739956252145,-500.0,0.0001378,2]
[353598375,1739956252155,-671.28,0.0001378,2]
[353598376,1739956252165,-500.0,0.0001378,2]
[353598377,1739956252175,-549.02,0.0001378,2]
[353598378,1739956252184,-940.4,0.0001378,2]
[353598379,1739956252195,-500.0,0.0001378,2]
[353598380,1739956252205,-500.0,0.0001378,2]
[353598381,1739956252215,-500.0,0.0001378,2]
[353598382,1739956252225,-500.0,0.0001378,2]
[353598383,1739956252235,-427.93234981,0.0001378,2]
[353598384,1739956252245,-503.25826788,0.0001378,2]
[353598385,1739956252255,-500.0,0.0001378,2]
[353598386,1739956252265,-500.0,0.0001378,2]
[353598387,1739956252277,-500.0,0.0001378,2]
[353598388,1739956252287,-500.0,0.0001378,2]
[353598389,1739956252296,-701.88,0.0001378,2]
[353598390,1739956252306,-1201.79,0.0001378,2]
[353598391,1739956252315,-500.0,0.0001378,2]
[353598392,1739956252325,-500.0,0.0001378,2]
[353598393,1739956252335,-500.0,0.0001378,2]
[353598394,1739956252345,-500.0,0.0001378,2]
[353598395,1739956252356,-500.0,0.0001378,2]
[353598396,1739956252366,-509.67132753,0.0001378,2]
[353598397,1739956252376,-500.0,0.0001378,2]
[353598398,1739956252386,-500.0,0.0001378,2]
[353598399,1739956252396,-1066.42,0.0001378,2]
[353598400,1739956252406,-500.0,0.0001378,2]
[353598401,1739956252416,-500.0,0.0001378,2]
[353598402,1739956252427,-500.0,0.0001378,2]
[353598403,1739956252437,-702.43,0.0001378,2]
[353598404,1739956252447,-500.0,0.0001378,2]
[353598405,1739956252457,-606.28,0.0001378,2]
[353598406,1739956252467,-572.02,0.0001378,2]
[353598407,1739956252477,-500.0,0.0001378,2]
[353598408,1739956252487,-500.0,0.0001378,2]
[353598409,1739956252710,-216.10414828,0.0001378,2]
[353598410,1739956252720,-500.0,0.0001378,2]
[353598411,1739956252731,-500.0,0.0001378,2]
[353598412,1739956252740,-500.0,0.0001378,2]
[353598413,1739956252750,-500.0,0.0001378,2]
[353598414,1739956252760,-804.81,0.0001378,2]
[353598415,1739956252770,-500.0,0.0001378,2]
[353598416,1739956252779,-519.55,0.0001378,2]
[353598417,1739956252788,-1076.87,0.0001378,2]
[353598418,1739956252798,-500.0,0.0001378,2]
[353598419,1739956252807,-500.0,0.0001378,2]
[353598420,1739956252816,-500.0,0.0001378,2]
[353598421,1739956252826,-500.0,0.0001378,2]
[353598422,1739956252835,-500.0,0.0001378,2]
[353598423,1739956252844,-518.5205729,0.0001378,2]
[353598424,1739956252854,-500.0,0.0001378,2]
[353598425,1739956252863,-500.0,0.0001378,2]
[353598426,1739956252872,-663.22,0.0001378,2]
[353598427,1739956252881,-500.0,0.0001378,2]
[353598428,1739956252891,-776.4,0.0001378,2]
[353598429,1739956252900,-500.0,0.0001378,2]
[353598430,1739956252909,-683.82,0.0001378,2]
[353598431,1739956252919,-628.05286678,0.0001378,2]
[353598432,1739956252928,-500.0,0.0001378,2]
[353598433,1739956252939,-516.88508626,0.0001378,2]
[353598434,1739956252951,-500.0,0.0001378,2]
[353598435,1739956252963,-500.0,0.0001378,2]
[353598436,1739956252974,-500.0,0.0001378,2]
[353598437,1739956252985,-500.0,0.0001378,2]
[353598438,1739956252996,-500.0,0.0001378,2]
[353598439,1739956253009,-751.62,0.0001378,2]
[353598440,1739956253019,-500.0,0.0001378,2]
[353598441,1739956253029,-160.85125397,0.0001378,2]
[353598442,1739956253039,-500.0,0.0001378,2]
[353598443,1739956253048,-500.0,0.0001378,2]
[353598444,1739956253058,-670.91,0.0001378,2]
[353598445,1739956253067,-500.0,0.0001378,2]
[353598446,1739956253076,-500.0,0.0001378,2]
[353598447,1739956253085,-500.0,0.0001378,2]
[353598448,1739956253094,-500.0,0.0001378,2]
[353598449,1739956253103,-955.91,0.0001378,2]
[353598450,1739956253113,-500.0,0.0001378,2]
[353598451,1739956253122,-259.34239868,0.0001378,2]
[353598452,1739956253131,-1091.48,0.0001378,2]
[353598453,1739956253140,-500.0,0.0001378,2]
[353598454,1739956253149,-500.0,0.0001378,2]
[353598455,1739956253159,-490.13728517,0.0001378,2]
[353598456,1739956253168,-516.86821741,0.0001378,2]
[353598457,1739956253177,-500.0,0.0001378,2]
[353598458,1739956253186,-500.0,0.0001378,2]
[353598459,1739956253196,-500.0,0.0001378,2]
[353598460,1739956253205,-1394.43,0.0001378,2]
[353598461,1739956253214,-1481.610516,0.0001378,2]
[353598462,1739956253224,-500.0,0.0001378,2]
[353598463,1739956253233,-672.58,0.0001378,2]
[353598464,1739956253243,-514.65,0.0001378,2]
[353598465,1739956253252,-500.0,0.0001378,2]
[353598466,1739956253261,-500.0,0.0001378,2]
[353598467,1739956253271,-500.0,0.0001378,2]
[353598468,1739956253281,-500.0,0.0001378,2]
[353598469,1739956253290,-1481.610516,0.0001378,2]
[353598470,1739956253299,-500.0,0.0001378,2]
[353598471,1739956253308,-500.0,0.0001378,2]
[353598472,1739956253317,-500.0,0.0001378,2]
[353598473,1739956253327,-540.14919994,0.0001378,2]
[353598474,1739956253336,-691.45,0.0001378,2]
[353598475,1739956253345,-500.0,0.0001378,2]
[353598476,1739956253355,-629.64,0.0001378,2]
[353598477,1739956253364,-500.0,0.0001378,2]
[353598478,1739956253374,-878.76,0.0001378,2]
[353598479,1739956253383,-500.0,0.0001378,2]
[353598480,1739956253393,-500.0,0.0001378,2]
[353598481,1739956253402,-500.0,0.0001378,2]
[353598482,1739956253411,-500.0,0.0001378,2]
[353598483,1739956253421,-648.01,0.0001378,2]
[353598484,1739956253431,-500.0,0.0001378,2]
[353598485,1739956253444,-895.83,0.0001378,2]
[353598486,1739956253453,-500.0,0.0001378,2]
[353598487,1739956253463,-553.99,0.0001378,2]
[353598488,1739956253473,-682.24,0.0001378,2]
[353598489,1739956253484,-500.0,0.0001378,2]
[353598490,1739956253493,-694.25,0.0001378,2]
[353598491,1739956253503,-500.0,0.0001378,2]
[353598492,1739956253513,-500.0,0.0001378,2]
[353598493,1739956253522,-635.95,0.0001378,2]
[353598494,1739956253531,-742.73,0.0001378,2]
[353598495,1739956253541,-966.29,0.0001378,2]
[353598496,1739956253551,-500.0,0.0001378,2]
[353598497,1739956253560,-517.97204574,0.0001378,2]
[353598498,1739956253570,-500.0,0.0001378,2]
[353598499,1739956253580,-500.0,0.0001378,2]
[353598500,1739956253594,-500.0,0.0001378,2]
[353598501,1739956253604,-500.0,0.0001378,2]
[353598502,1739956253614,-500.0,0.0001378,2]
[353598503,1739956253624,-500.0,0.0001378,2]
[353598504,1739956253634,-530.78750804,0.0001378,2]
[353598505,1739956253645,-518.6,0.0001378,2]
[353598506,1739956253655,-516.62,0.0001378,2]
[353598507,1739956253665,-614.7,0.0001378,2]
[353598508,1739956253675,-500.0,0.0001378,2]
[353598509,1739956253685,-500.0,0.0001378,2]
[353598510,1739956253694,-500.0,0.0001378,2]
[353598511,1739956253705,-500.0,0.0001378,2]
[353598512,1739956253714,-500.0,0.0001378,2]
[353598513,1739956253724,-500.0,0.0001378,2]
[353598514,1739956253734,-500.0,0.0001378,2]
[353598515,1739956253743,-529.31608534,0.0001378,2]
[353598516,1739956253753,-1007.52,0.0001378,2]
[353598517,1739956253763,-592.45753334,0.0001378,2]
[353598518,1739956253773,-500.0,0.0001378,2]
[353598519,1739956253783,-735.34,0.0001378,2]
[353598520,1739956253792,-488.48310354,0.0001378,2]
[353598521,1739956253802,-500.0,0.0001378,2]
[353598522,1739956253812,-500.0,0.0001378,2]
[353598523,1739956253822,-1732.84,0.0001378,2]
[353598524,1739956253832,-500.0,0.0001378,2]
[353598525,1739956253842,-500.0,0.0001378,2]
[353598526,1739956253851,-500.0,0.0001378,2]
[353598527,1739956253861,-500.0,0.0001378,2]
[353598528,1739956253871,-500.0,0.0001378,2]
[353598529,1739956253880,-500.0,0.0001378,2]
[353598530,1739956253891,-700.89,0.0001378,2]
[353598531,1739956253902,-500.0,0.0001378,2]
[353598532,1739956253912,-500.0,0.0001378,2]
[353598533,1739956253921,-500.0,0.0001378,2]
[353598534,1739956253932,-500.0,0.0001378,2]
[353598535,1739956253941,-500.0,0.0001378,2]
[353598536,1739956253951,-500.0,0.0001378,2]
[353598537,1739956253961,-500.0,0.0001378,2]
[353598538,1739956253971,-563.75,0.0001378,2]
[353598539,1739956253981,-500.0,0.0001378,2]
[353598540,1739956253991,-500.0,0.0001378,2]
[353598541,1739956254001,-500.0,0.0001378,2]
[353598542,1739956254011,-500.0,0.0001378,2]
[353598543,1739956254021,-572.44,0.0001378,2]
[353598544,1739956254032,-675.61,0.0001378,2]
[353598545,1739956254041,-692.71,0.0001378,2]
[353598546,1739956254052,-921.81,0.0001378,2]
[353598547,1739956254062,-500.0,0.0001378,2]
[353598548,1739956254071,-500.0,0.0001378,2]
[353598549,1739956254081,-630.15,0.0001378,2]
[353598550,1739956254091,-500.0,0.0001378,2]
[353598551,1739956254101,-324.80098701,0.0001378,2]
[353598552,1739956254111,-840.73,0.0001378,2]
[353598553,1739956254120,-500.0,0.0001378,2]
[353598554,1739956254129,-500.0,0.0001378,2]
[353598555,1739956254139,-500.0,0.0001378,2]
[353598556,1739956254149,-500.0,0.0001378,2]
[353598557,1739956254159,-754.93,0.0001378,2]
[353598558,1739956254170,-792.57,0.0001378,2]
[353598559,1739956254181,-517.84691226,0.0001378,2]
[353598560,1739956254191,-605.41520154,0.0001378,2]
[353598561,1739956254202,-500.0,0.0001378,2]
[353598562,1739956254212,-637.85,0.0001378,2]
[353598563,1739956254222,-500.0,0.0001378,2]
[353598564,1739956254232,-629.07043743,0.0001378,2]
[353598565,1739956254243,-500.0,0.0001378,2]
[353598566,1739956254252,-500.0,0.0001378,2]
[353598567,1739956254263,-500.0,0.0001378,2]
[353598568,1739956254273,-1420.07,0.0001378,2]
[353598569,1739956254283,-500.0,0.0001378,2]
[353598570,1739956254292,-500.0,0.0001378,2]
[353598571,1739956254302,-500.0,0.0001378,2]
[353598572,1739956254311,-500.0,0.0001378,2]
[353598573,1739956254321,-597.8,0.0001378,2]
[353598574,1739956254331,-1337.04,0.0001378,2]
[353598575,1739956254340,-828.61,0.0001378,2]
[353598576,1739956254350,-500.0,0.0001378,2]
[353598577,1739956254360,-500.0,0.0001378,2]
[353598578,1739956254370,-500.0,0.0001378,2]
[353598579,1739956254380,-350.57322655,0.0001378,2]
[353598580,1739956254390,-1655.83,0.0001378,2]
[353598581,1739956254400,-537.86,0.0001378,2]
[353598582,1739956254409,-500.0,0.0001378,2]
[353598583,1739956254422,-500.0,0.0001378,2]
[353598584,1739956254431,-1249.94,0.0001378,2]
[353598585,1739956254441,-500.0,0.0001378,2]
[353598586,1739956254451,-500.0,0.0001378,2]
[353598587,1739956254461,-500.0,0.0001378,2]
[353598588,1739956254471,-500.0,0.0001378,2]
[353598589,1739956254481,-500.0,0.0001378,2]
[353598590,1739956254492,-766.75,0.0001378,2]
[353598591,1739956254502,-500.0,0.0001378,2]
[353598592,1739956254512,-1406.25,0.0001378,2]
[353598593,1739956254522,-566.34,0.0001378,2]
[353598594,1739956254530,-781.14,0.0001378,2]
[353598595,1739956254539,-500.0,0.0001378,2]
[353598596,1739956254548,-500.0,0.0001378,2]
[353598597,1739956254557,-552.58,0.0001378,2]
[353598598,1739956254567,-187.73773741,0.0001378,2]
[353598599,1739956254575,-500.0,0.0001378,2]
[353598600,1739956254587,-500.0,0.0001378,2]
[353598601,1739956254598,-500.0,0.0001378,2]
[353598602,1739956254608,-500.0,0.0001378,2]
[353598603,1739956254617,-500.0,0.0001378,2]
[353598604,1739956254626,-500.0,0.0001378,2]
[353598605,1739956254635,-767.12,0.0001378,2]
[353598606,1739956254646,-500.0,0.0001378,2]
[353598607,1739956254656,-864.57,0.0001378,2]
[353598608,1739956254666,-530.142209,0.0001378,2]
[353598609,1739956254676,-502.16,0.0001378,2]
[353598610,1739956254686,-500.0,0.0001378,2]
[353598611,1739956254696,-500.0,0.0001378,2]
[353598612,1739956254705,-500.0,0.0001378,2]
[353598613,1739956254714,-1343.23,0.0001378,2]
[353598614,1739956254724,-482.36795273,0.0001378,2]
[353598615,1739956254734,-500.0,0.0001378,2]
[353598616,1739956254744,-530.142213,0.0001378,2]
[353598617,1739956254754,-661.82,0.0001378,2]
[353598618,1739956254763,-500.0,0.0001378,2]
[353598619,1739956254773,-500.0,0.0001378,2]
[353598620,1739956254783,-500.0,0.0001378,2]
[353598621,1739956254793,-841.68,0.0001378,2]
[353598622,1739956254803,-852.01,0.0001378,2]
[353598623,1739956254814,-500.0,0.0001378,2]
[353598624,1739956254824,-171.029362,0.0001378,2]
[353598625,1739956254834,-897.14,0.0001378,2]
[353598626,1739956254844,-1231.49,0.0001378,2]
[353598627,1739956254854,-500.0,0.0001378,2]
[353598628,1739956254864,-500.0,0.0001378,2]
[353598629,1739956254874,-500.0,0.0001378,2]
[353598630,1739956254885,-512.32229331,0.0001378,2]
[353598631,1739956254895,-500.0,0.0001378,2]
[353598632,1739956254904,-500.0,0.0001378,2]
[353598633,1739956254914,-500.0,0.0001378,2]
[353598634,1739956254923,-838.02,0.0001378,2]
[353598635,1739956254933,-171.029367,0.0001378,2]
[353598636,1739956254943,-500.0,0.0001378,2]
[353598637,1739956254953,-500.0,0.0001378,2]
[353598638,1739956254963,-500.0,0.0001378,2]
[353598639,1739956254974,-500.0,0.0001378,2]
[353598640,1739956254984,-786.35,0.0001378,2]
[353598641,1739956254993,-500.0,0.0001378,2]
[353598642,1739956255003,-639.43,0.0001378,2]
[353598643,1739956255013,-500.0,0.0001378,2]
[353598644,1739956255022,-500.0,0.0001378,7]
[353598645,1739956255107,-500.0,0.0001378,2]
[353598646,1739956255116,-521.38,0.0001378,2]
[353598647,1739956255125,-500.0,0.0001378,2]
[353598648,1739956255135,-636.92047586,0.0001378,2]
[353598649,1739956255144,-500.0,0.0001378,2]
[353598650,1739956255153,-801.45,0.0001378,2]
[353598651,1739956255163,-689.46,0.0001378,2]
[353598652,1739956255172,-500.0,0.0001378,2]
[353598653,1739956255183,-600.94,0.0001378,2]
[353598654,1739956255192,-1532.24,0.0001378,2]
[353598655,1739956255202,-500.0,0.0001378,2]
[353598656,1739956255211,-618.18,0.0001378,2]
[353598657,1739956255221,-500.0,0.0001378,2]
[353598658,1739956255231,-500.0,0.0001378,2]
[353598659,1739956255241,-1165.95,0.0001378,2]
[353598660,1739956255251,-500.0,0.0001378,2]
[353598661,1739956255261,-500.0,0.0001378,2]
[353598662,1739956255272,-1343.75,0.0001378,2]
[353598663,1739956255283,-500.0,0.0001378,2]
[353598664,1739956255292,-500.0,0.0001378,2]
[353598665,1739956255302,-2541.44,0.0001378,2]
[353598666,1739956255312,-500.0,0.0001378,2]
[353598667,1739956255322,-500.0,0.0001378,2]
[353598668,1739956255331,-500.0,0.0001378,2]
[353598669,1739956255341,-500.0,0.0001378,2]
[353598670,1739956255351,-500.0,0.0001378,2]
[353598671,1739956255360,-682.01,0.0001378,2]
[353598672,1739956255370,-1000.35,0.0001378,2]
[353598673,1739956255381,-500.0,0.0001378,2]
[353598674,1739956255392,-912.63,0.0001378,2]
[353598675,1739956255402,-905.46,0.0001378,2]
[353598676,1739956255412,-1444.62,0.0001378,2]